Cogmind - Beta 10.2 --- EXPLORER MODE // 2020.11.18 @ 16:12:48 Player: HawkeyeFierce Result: Destroyed by B-86 Titan with Hardcell Cannon Performance ------------- Evolutions (6) 3000 Regions Visited (13) 2600 Robots Destroyed (101) 505 Value Destroyed (4440) 4440 Prototype IDs (15) 300 Alien Tech Used (0) 0 Bonus (2789) 2789 TOTAL SCORE: 13634 Bonus ------- High Alert Combat Kills 125 Follower Combat Kills 50 Met Warlord at Base 500 MAIN.C Attacked Warlord 500 Warlord Defense Kill 1614 Cogmind --------- Core Integrity 0/1150 Matter 225/300 Energy 362/535 System Corruption 6% Temperature Cool (9) Movement Core (1300) Ox25 Location -3/Proximity Caves Parts ------- > --- POWER (2) -------- Reinforced Fission Core Reinforced Antimatter Reactor > --- PROPULSION (6) --- (None) > --- UTILITY (10) ----- Advanced Heat Sink Experimental Heat Sink High-capacity Storage Unit Advanced Signal Interpreter Advanced Signal Interpreter Improved Targeting Computer Experimental Targeting Computer Experimental Core Analyzer > --- WEAPON (2) ------- (None) > --- INVENTORY (12) --- Advanced Heat Sink Improved Remote Datajack Peak State ------------ > --- POWER ------------ Light Particle Reactor Light Quantum Reactor > --- PROPULSION ------- Myomer Leg Myomer Leg Antigrav System Improved Antigrav System Improved Antigrav System Improved Antigrav System > --- UTILITY ---------- Advanced Heat Sink High-capacity Storage Unit Advanced Signal Interpreter Advanced Signal Interpreter Improved Targeting Computer Improved Core Analyzer Reaction Control System Improved Hardlight Generator Hacking Suite Minesniffer Drone Bay > --- WEAPON ----------- Phase Gun Disruptor Cannon > --- INVENTORY -------- Reinforced Fission Core Light Antimatter Reactor Advanced Heat Sink Experimental Heat Sink Experimental Targeting Computer Experimental Core Analyzer Advanced Kinecellerator Gamma Rifle Gamma Rifle Phase Gun Helical Railgun Improved Remote Datajack [Rating: 124] Favorites ----------- Power Light Antimatter Reactor Engine Light Ion Engine Power Core Micro Fission Core Reactor Light Antimatter Reactor Propulsion Myomer Leg Leg Myomer Leg Hover Unit Antigrav System Flight Unit Improved Flight Unit Utility Advanced Signal Interpreter Device Advanced Heat Sink Storage High-capacity Storage Unit Processor Advanced Signal Interpreter Hackware Hacking Suite Weapon Coil Gun Energy Gun Medium Laser Energy Cannon Improved EM Pulse Cannon Ballistic Gun Coil Gun Ballistic Cannon Enhanced Gauss Cannon Launcher EMP Blaster Special Weapon Remote Datajack Slashing Weapon Power Sword Special Melee Weapon Improved Datajack Build | -11 -10 -9 -8 -7 -6 -6 -6 -5 -4 -4 -4 -4 -3 ------- Run | Scr Mat Mat Mat Fac Fac Ext Cet Fac Fac Upp Upp War Pro Slots Evolved 13 | . 1 2 2 2 2 . . 2 2 . . . . Power 1 | . . 1 . . . . . . . . . . . Propulsion 4 | . 1 . 1 1 1 . . . . . . . . Utility 8 | . . 1 1 1 1 . . 2 2 . . . . Weapon . | . . . . . . . . . . . . . . Parts Attached 217 | 7 13 12 33 19 11 9 . 24 12 30 18 19 10 Power 37 | 1 2 3 10 2 . 3 . 5 1 2 4 2 2 Engine 17 | 1 2 3 7 1 . 3 . . . . . . . Core 11 | . . . 3 1 . . . 5 . . 1 . 1 Reactor 9 | . . . . . . . . . 1 2 3 2 1 Propulsion 75 | 2 5 8 12 7 5 2 . 10 3 5 10 6 . Treads . | . . . . . . . . . . . . . . Leg 17 | 2 1 . . . . . . . . 5 9 . . Wheel . | . . . . . . . . . . . . . . Hover 43 | . 4 2 3 7 5 2 . 10 3 . 1 6 . Flight 15 | . . 6 9 . . . . . . . . . . Utility 55 | 2 3 1 5 5 3 2 . 5 5 13 1 5 5 Device 36 | . 1 . 2 1 2 2 . 5 5 10 1 4 3 Storage 3 | 1 1 . . 1 . . . . . . . . . Processor 11 | 1 1 1 2 1 . . . . . 2 . 1 2 Hackware 5 | . . . 1 2 1 . . . . 1 . . . Protection . | . . . . . . . . . . . . . . Artifact . | . . . . . . . . . . . . . . Weapon 50 | 2 3 . 6 5 3 2 . 4 3 10 3 6 3 Energy Gun 21 | 1 2 . . 3 1 . . 1 . 4 2 5 2 Energy Cannon 7 | . . . 2 1 1 . . 1 1 . . 1 . Ballistic Gun 10 | 1 . . 1 1 1 1 . . . 3 1 . 1 Ballistic Cannon 5 | . 1 . 1 . . . . 1 1 1 . . . Launcher 1 | . . . 1 . . . . . . . . . . Special Weapon 1 | . . . . . . . . . 1 . . . . Impact Weapon . | . . . . . . . . . . . . . . Slashing Weapon 2 | . . . . . . . . . . 2 . . . Piercing Weapon . | . . . . . . . . . . . . . . Special Melee Weapon 3 | . . . 1 . . 1 . 1 . . . . . Unidentified Prototypes 12 | . . 1 . . 1 . . 2 . . . 2 6 Parts Lost 63 | . . . 10 1 . 2 . . 10 16 . 4 20 Power 7 | . . . 2 . . . . . 1 2 . . 2 Propulsion 22 | . . . 6 1 . 1 . . 4 3 . 1 6 Utility 21 | . . . 1 . . . . . 4 8 . 1 7 Weapon 13 | . . . 1 . . 1 . . 1 3 . 2 5 Highest Loss Streak 19 | . . . 4 1 . 1 . . 9 13 . 3 19 Average Slot Usage (%) 93 | . 93 99 96 95 88 88 93 93 93 74 97 99 70 Engine 3 | . 12 19 9 7 6 6 6 . . . . . . Core 3 | . . . 5 7 6 6 6 10 7 . 1 . . Reactor 3 | . . . . . . . . . 2 3 6 10 7 Leg 10 | . 19 . . . . . . . . 15 24 22 . Hover 13 | . 12 16 5 32 26 26 31 26 24 2 3 7 13 Flight 3 | . . 13 26 1 . . . . . . . . . Device 16 | . 3 10 12 5 5 6 6 16 24 21 25 23 11 Storage 4 | . 8 . . . 6 6 6 5 5 5 5 5 5 Processor 14 | . 12 20 16 14 12 12 12 11 10 14 15 16 22 Hackware 5 | . . . 2 14 12 12 12 11 9 2 5 5 2 Energy Gun 4 | . 12 10 . 6 6 4 . 2 . 5 5 5 5 Energy Cannon 1 | . . . 1 4 6 3 . . 4 . . . . Ballistic Gun 2 | . 11 . . 1 . 2 6 . . 1 5 3 1 Ballistic Cannon 1 | . . 10 3 . . . . 1 . . . . . Special Melee Weapon 1 | . . . 7 . . 2 6 4 3 . . . . Naked Turns . | . . . . . . . . . . . . . . Heaviest Build 98 | 14 38 13 20 53 56 55 49 68 74 81 97 98 95 Greatest Support 125 | 20 30 18 21 46 91 91 83 95 87 105 125 125 83 Greatest Overweight (x) 27 | . 3 2 1 1 . . . . 1 11 . 2 27 Average Overweight (x) . | . . . . . . . . . . . . . 2 Largest Inventory Capacity 12 | 8 12 4 4 12 12 12 12 12 12 12 12 12 12 Average Capacity 9 | 7 8 4 4 5 12 12 12 12 12 12 12 12 12 Most Carried 12 | 7 12 4 4 7 12 12 12 12 12 12 12 12 12 Average Carried 8 | 6 8 3 3 3 10 11 12 11 10 7 12 11 9 Final Capacity 12 | 8 4 4 4 12 12 12 12 12 12 12 12 12 12 Final Carried 12 | 7 4 4 2 6 12 12 12 11 9 12 12 12 2 Class Distribution -------------------- 36% | Scavenger-Mutant 29% | Hacker-Mutant 13% | Hacker-Ninja 12% | Hacker-Scout 5% | Scavenger-Scout Dominant Class ---------------- Hacker-Mutant | -10/Materials Scavenger-Scout | -9/Materials Hacker-Scout | -8/Materials Hacker-Scout | -7/Factory Hacker-Mutant | -6/Factory Hacker-Scout | -6/Extension Hacker-Scout | -6/Cetus Hacker-Ninja | -5/Factory Hacker-Ninja | -4/Factory Scavenger-Mutant | -4/Upper Caves Scavenger-Mutant | -4/Upper Caves Scavenger-Mutant | -4/Warlord Hacker-Mutant | -3/Proximity Caves Resources | -11 -10 -9 -8 -7 -6 -6 -6 -5 -4 -4 -4 -4 -3 ----------- Run | Scr Mat Mat Mat Fac Fac Ext Cet Fac Fac Upp Upp War Pro Matter Collected 3060 | 266 157 147 723 236 117 142 . 325 122 375 225 215 10 Remotely . | . . . . . . . . . . . . . . Salvage Created 4233 | . 459 223 866 436 150 95 . 269 54 569 363 503 246 Parts 233 | . 30 25 42 25 10 9 . 15 . 15 18 36 8 Haulers Intercepted 2 | . 1 1 . . . . . . . . . . . Recyclers Shooed 1 | . . . 1 . . . . . . . . . . Parts Field Recycled . | . . . . . . . . . . . . . . Retrieved Matter . | . . . . . . . . . . . . . . Parts Self-Destructed . | . . . . . . . . . . . . . . Prevented . | . . . . . . . . . . . . . . Kills | -11 -10 -9 -8 -7 -6 -6 -6 -5 -4 -4 -4 -4 -3 ------- Run | Scr Mat Mat Mat Fac Fac Ext Cet Fac Fac Upp Upp War Pro Combat Hostiles Destroyed 76 | . 6 9 18 7 2 . . 6 1 8 5 10 4 Melee 3 | . . . . . . . . . . 3 . . . Guns 35 | . 6 4 1 3 1 . . 2 . 4 5 5 4 Cannons 30 | . . 5 13 2 1 . . 4 1 1 . 3 . AOE 8 | . . . 4 2 . . . . . . . 2 . Classes Destroyed 15 | . 5 4 1 . 1 . . . . 1 . 3 . Worker 2 | . . 1 1 . . . . . . . . . . Builder 2 | . 1 . 1 . . . . . . . . . . Hauler 2 | . 1 1 . . . . . . . . . . . Recycler 1 | . 1 . . . . . . . . . . . . Operator 6 | . . 1 3 1 1 . . . . . . . . Watcher 12 | . 3 . 3 2 . 3 . 1 . . . . . Swarmer 12 | . . 6 2 . . . . 1 . 1 . . 2 Grunt 32 | . 6 2 9 6 . . . 2 . 3 3 . 1 Brawler 1 | . . . . . . . . . . . . 1 . Duelist 2 | . . . . . . . . . . 1 . 1 . Sentry 13 | . . 1 6 1 1 . . 1 1 1 . . 1 Hunter 5 | . . . 1 . . . . . . 2 2 . . Programmer 9 | . . . . . 1 . . 2 . . . 6 . Striker 1 | . . . . . . . . . . . . 1 . Executioner 1 | . . . . . . . . . . . . 1 . Packrat 1 | . . . . . . . . . . 1 . . . Best Kill Streak 7 | . 4 7 7 5 1 1 . 4 1 2 2 7 4 Combat Bots Only 7 | . 2 6 7 4 1 . . 4 1 2 2 7 4 Max Kills in Single Turn 3 | . 1 1 3 2 1 1 . 1 1 1 1 1 1 Gunslinging . | . . . . . . . . . . . . . . Exploded 2 | . . . 2 1 . . . . . . . 1 . Melee 1 | . . . . . . . . . . 1 . . . Uniques/NPCs Destroyed . | . . . . . . . . . . . . . . Combat | -11 -10 -9 -8 -7 -6 -6 -6 -5 -4 -4 -4 -4 -3 -------- Run | Scr Mat Mat Mat Fac Fac Ext Cet Fac Fac Upp Upp War Pro Damage Taken 8057 | . 131 146 785 221 198 598 48 340 959 1739 306 920 1666 Core 1557 | . 36 31 142 78 27 60 . 27 83 621 35 103 314 Absorbed by Shields 443 | . . . . . 58 4 . . . 83 282 16 . Core Remaining (%) 89 | 100 85 92 74 88 . . 89 97 . . . . . Volleys Fired 316 | . 33 26 93 22 7 11 . 27 5 34 19 27 12 Largest 2 | . 2 2 2 2 2 2 . 1 1 2 2 2 2 Hottest 169 | . 70 100 110 125 144 144 . 69 110 138 118 169 113 Shots Fired 481 | . 66 46 103 44 14 18 . 27 5 48 38 50 22 Gun 270 | . 66 20 3 28 7 11 . 11 . 40 38 24 22 Cannon 181 | . . 26 77 9 7 7 . 16 5 8 . 26 . Launcher 30 | . . . 23 7 . . . . . . . . . Special . | . . . . . . . . . . . . . . Kinetic 200 | . 33 26 59 6 . 4 . 16 1 26 19 . 10 Thermal 172 | . 33 20 21 22 4 7 . 11 4 22 19 9 . Explosive . | . . . . . . . . . . . . . . Electromagnetic 94 | . . . 23 16 10 7 . . . . . 26 12 Entropic 15 | . . . . . . . . . . . . 15 . Robot Hit Streak 68 | . 23 26 44 58 16 22 . 12 4 50 68 32 12 Robot Miss Streak 4 | . 2 3 3 2 . 4 . 1 1 . 1 1 1 Penetration Max 1 | . . . . . . . . . . . 1 . 1 Secondary Targets 2 | . . . . . . . . . . . 1 . 1 Max Gunslinging Chain 1 | . . . . . . . . . . . 1 . 1 Shots Hit Robots 428 | . 54 34 96 37 13 15 . 24 4 55 36 42 18 Core Hits 209 | . 24 14 44 21 7 7 . 14 2 24 20 25 7 Critical Hits 7 | . 1 . . . . . . 1 1 2 . 1 1 Critical Kills 4 | . 1 . . . . . . 1 1 1 . . . Critical Parts Destroyed 1 | . . . . . . . . . . . . . 1 Melee Attacks 20 | . . . 8 . . 2 . 1 . 9 . . . Impact . | . . . . . . . . . . . . . . Slashing 9 | . . . . . . . . . . 9 . . . Piercing . | . . . . . . . . . . . . . . Sneak Attacks 8 | . . . 5 . . 2 . 1 . . . . . Combat Hostiles . | . . . . . . . . . . . . . . Follow-up Attacks . | . . . . . . . . . . . . . . Damage Inflicted 10094 | . 592 518 2297 984 315 394 . 682 158 1337 827 1346 644 Guns 4880 | . 592 212 49 333 155 174 . 188 . 716 827 990 644 Cannons 3431 | . . 306 1483 223 160 220 . 494 158 268 . 119 . Explosions 1430 | . . . 765 428 . . . . . . . 237 . Melee 353 | . . . . . . . . . . 353 . . . Ramming . | . . . . . . . . . . . . . . Kinetic 3613 | . 206 306 1082 72 . 64 . 494 . 616 410 . 363 Thermal 3337 | . 386 212 514 369 102 110 . 188 158 368 417 513 . Explosive 101 | . . . . 101 . . . . . . . . . Electromagnetic 1976 | . . . 701 442 213 220 . . . . . 119 281 Impact . | . . . . . . . . . . . . . . Slashing 353 | . . . . . . . . . . 353 . . . Piercing . | . . . . . . . . . . . . . . Entropic 714 | . . . . . . . . . . . . 714 . Highest Corruption 6 | . 3 . . . . . . 1 2 2 2 6 6 Average Corruption 2 | . 2 . . . . . . 1 1 2 2 4 6 Corruption Purged . | . . . . . . . . . . . . . . Effects 38 | . 10 . . . . . . 3 . 8 6 9 2 Message Errors 10 | . 3 . . . . . . . . 3 3 1 . Matter Fused 2 | . . . . . . . . . . . . 1 1 Heat Flow Errors 5 | . 1 . . . . . . . . 2 1 1 . Energy Discharges 5 | . 1 . . . . . . 1 . . 1 1 1 Data Loss (minor) 5 | . 2 . . . . . . 1 . 1 1 . . Targeting Errors 9 | . 3 . . . . . . 1 . 2 . 3 . Weapon Failures 2 | . . . . . . . . . . . . 2 . Overload Shots . | . . . . . . . . . . . . . . Overflow Damage 94 | . . 7 37 17 . 15 . 18 . . . . . Projectiles 62 | . . 7 22 . . 15 . 18 . . . . . Explosions 32 | . . . 15 17 . . . . . . . . . Melee . | . . . . . . . . . . . . . . Knockbacks 28 | . . 5 14 . . . . 7 . 2 . . . Impact . | . . . . . . . . . . . . . . Kinetic 24 | . . 4 13 . . . . 5 . 2 . . . Secondary 4 | . . 1 1 . . . . 2 . . . . . Self-Inflicted Damage 137 | . . . 4 36 . . . 42 . . . 55 . Shots 4 | . . . 1 1 . . . 1 . . . 1 . Rammed . | . . . . . . . . . . . . . . Targets Rammed . | . . . . . . . . . . . . . . Kicked . | . . . . . . . . . . . . . . Crushed . | . . . . . . . . . . . . . . Highest Temperature 452 | . 250 352 452 346 270 280 . 350 322 230 158 108 306 Average Temperature 119 | . 92 170 125 152 102 106 . 118 89 70 90 40 146 Received Heat Transfer 2032 | . 120 39 423 123 28 234 9 93 147 501 49 29 237 Effects 28 | . . 4 13 3 1 . . 4 2 . . . 1 Shutdowns 9 | . . 1 6 . . . . 2 . . . . . Energy Bleed 5 | . . . 1 1 1 . . 1 . . . . 1 Interference 11 | . . 3 5 1 . . . . 2 . . . . Matter Decay 1 | . . . . 1 . . . . . . . . . Short Circuit 2 | . . . 1 . . . . 1 . . . . . Siege Activations . | . . . . . . . . . . . . . . Robots Corrupted . | . . . . . . . . . . . . . . Combat Hostiles . | . . . . . . . . . . . . . . Parts Fried 9 | . . . 3 2 3 1 . . . . . . . Impact Corruptions 1 | . . . . . . . . 1 . . . . . Robots Melted . | . . . . . . . . . . . . . . Combat Hostiles . | . . . . . . . . . . . . . . Parts Melted 14 | . . 1 . . 2 . . 2 . 4 2 3 . Heat Transferred 6290 | . 1147 518 766 766 200 250 . 370 100 831 809 533 . Parts Sabotaged . | . . . . . . . . . . . . . . Parts Stolen . | . . . . . . . . . . . . . . Parts Stripped . | . . . . . . . . . . . . . . Power Chain Reactions 8 | . . . 4 2 . . . . . . . 2 . Missiles Intercepted . | . . . . . . . . . . . . . . Alert | -11 -10 -9 -8 -7 -6 -6 -6 -5 -4 -4 -4 -4 -3 ------- Run | Scr Mat Mat Mat Fac Fac Ext Cet Fac Fac Upp Upp War Pro Peak Influence 741 | . 161 420 741 387 174 423 192 272 267 . . . . Initial 177 | . . 48 127 141 34 62 177 80 36 . . . . Average 143 | . 78 184 401 264 99 231 187 77 85 . . . . Maximum Alert Level 3 | . . 2 3 1 . 2 . 1 1 . . . . Low Security (%) 72 | 100 100 52 8 29 100 49 100 88 91 . . . . Level 1 18 | . . 42 40 70 . 41 . 11 8 . . . . Level 2 8 | . . 5 50 . . 9 . . . . . . . Level 3 . | . . . 1 . . . . . . . . . . Level 4 . | . . . . . . . . . . . . . . Level 5 . | . . . . . . . . . . . . . . High Security . | . . . . . . . . . . . . . . Max Security . | . . . . . . . . . . . . . . Squads Dispatched 13 | . . 1 6 2 1 . . 1 2 . . . . Investigation . | . . . . . . . . . . . . . . Extermination 3 | . . . . . . . . 1 2 . . . . Reinforcement 9 | . . 1 5 2 1 . . . . . . . . Assault . | . . . . . . . . . . . . . . Garrison 1 | . . . 1 . . . . . . . . . . Intercept . | . . . . . . . . . . . . . . Construction Impeded 2 | . . . 1 1 . . . . . . . . . Haulers Reinforced . | . . . . . . . . . . . . . . Stealth | -11 -10 -9 -8 -7 -6 -6 -6 -5 -4 -4 -4 -4 -3 --------- Run | Scr Mat Mat Mat Fac Fac Ext Cet Fac Fac Upp Upp War Pro Distress Signals 8 | . 1 . . 1 . . . 1 5 . . . . Communications Jammed 8 | . . . . . . . . 1 7 . . . . Distress Signals 8 | . . . . . . . . 1 7 . . . . Times Spotted 213 | . 10 20 43 11 11 17 5 10 32 12 5 31 6 Peak Tracking Total 15 | . 3 8 10 4 4 4 5 4 15 7 3 12 6 Tactical Retreats 31 | . . 3 5 . 1 7 . 1 9 . . 3 2 Traps | -11 -10 -9 -8 -7 -6 -6 -6 -5 -4 -4 -4 -4 -3 ------- Run | Scr Mat Mat Mat Fac Fac Ext Cet Fac Fac Upp Upp War Pro Traps Triggered 12 | . 5 . 1 2 . 2 . . 2 . . . . Indirectly . | . . . . . . . . . . . . . . Trap Hack Attempts . | . . . . . . . . . . . . . . Triggered . | . . . . . . . . . . . . . . Disarmed 6 | . . . . . . . . . 6 . . . . Reprogrammed 3 | . 3 . . . . . . . . . . . . Reused . | . . . . . . . . . . . . . . Traps Extracted . | . . . . . . . . . . . . . . Installed . | . . . . . . . . . . . . . . Triggered 20 | . . . . . . . . . . . . 20 . Machines | -11 -10 -9 -8 -7 -6 -6 -6 -5 -4 -4 -4 -4 -3 ---------- Run | Scr Mat Mat Mat Fac Fac Ext Cet Fac Fac Upp Upp War Pro Machines Disabled 8 | . . . 5 2 . . . 1 . . . . . Max in Single Turn 1 | . . . 1 1 . . . 1 . . . . . Machines Sabotaged . | . . . . . . . . . . . . . . Garrisons Compromised . | . . . . . . . . . . . . . . Overloaded Fab Kills . | . . . . . . . . . . . . . . Fab Network Shutdowns . | . . . . . . . . . . . . . . Hacking | -11 -10 -9 -8 -7 -6 -6 -6 -5 -4 -4 -4 -4 -3 --------- Run | Scr Mat Mat Mat Fac Fac Ext Cet Fac Fac Upp Upp War Pro Machines Accessed 36 | . 8 1 4 4 4 . . 3 3 . 1 8 . Terminals 19 | . 6 1 2 3 3 . . 1 2 . 1 . . Fabricators 1 | . . . . . . . . . 1 . . . . Repair Stations 5 | . 1 . 2 1 . . . 1 . . . . . Recycling Units 2 | . 1 . . . 1 . . . . . . . . Scanalyzers 1 | . . . . . . . . 1 . . . . . Garrison Access . | . . . . . . . . . . . . . . Total Hacks 94 | . 24 2 20 10 7 . . 7 13 . 2 9 . Successful 74 | . 19 2 11 8 6 . . 6 11 . 2 9 . Failed 20 | . 5 . 9 2 1 . . 1 2 . . . . Catastrophic 3 | . 1 . . . 1 . . . 1 . . . . Database Lockouts . | . . . . . . . . . . . . . . Manual 10 | . 1 . . 1 . . . 1 4 . 1 2 . Terminals 61 | . 20 2 11 6 6 . . 2 12 . 2 . . Fabricators 1 | . . . . . . . . . 1 . . . . Repair Stations 19 | . 2 . 9 4 . . . 4 . . . . . Recycling Units 3 | . 2 . . . 1 . . . . . . . . Scanalyzers 1 | . . . . . . . . 1 . . . . . Garrison Access . | . . . . . . . . . . . . . . Terminal Hacks 53 | . 15 2 4 4 5 . . 2 10 . 2 9 . Record 20 | . 2 . 4 1 4 . . . . . 2 7 . Robot Analysis 1 | . . . . 1 . . . . . . . . . Prototype ID Bank 3 | . 2 1 . . . . . . . . . . . Open Door 2 | . . . . . . . . . . . . 2 . Level Access Points 1 | . . . . . . . . . 1 . . . . Branch Access Points 3 | . 1 . . . . . . 1 1 . . . . Emergency Access Points 3 | . 2 . . . . . . . 1 . . . . Recycling Unit Index 1 | . 1 . . . . . . . . . . . . Alert Level 2 | . . . . . 1 . . . 1 . . . . Unreport Threat 1 | . . . . . . . . . 1 . . . . Locate Traps 3 | . 1 . . 1 . . . . 1 . . . . Disarm Traps 1 | . . . . . . . . . 1 . . . . Reprogram Traps 1 | . 1 . . . . . . . . . . . . Dispatch Records 2 | . 2 . . . . . . . . . . . . Extermination Status 1 | . . . . . . . . . 1 . . . . Recall Investigation 1 | . . . . . . . . . 1 . . . . Recall Extermination 2 | . . . . . . . . 1 1 . . . . Hauler Manifests 2 | . 1 . . 1 . . . . . . . . . Registered Components 1 | . 1 . . . . . . . . . . . . Zone Layout 2 | . 1 1 . . . . . . . . . . . Fabricator Hacks 1 | . . . . . . . . . 1 . . . . Network Status 1 | . . . . . . . . . 1 . . . . Repair Station Hacks 17 | . 2 . 7 4 . . . 4 . . . . . Scan Component 9 | . 1 . 4 2 . . . 2 . . . . . Repair 8 | . 1 . 3 2 . . . 2 . . . . . Recycling Unit Hacks 3 | . 2 . . . 1 . . . . . . . . Report Inventory 2 | . 1 . . . 1 . . . . . . . . Retrieve Components 1 | . 1 . . . . . . . . . . . . Scanalyzer . | . . . . . . . . . . . . . . Garrison Access Hacks . | . . . . . . . . . . . . . . Unauthorized Hacks . | . . . . . . . . . . . . . . Terminals . | . . . . . . . . . . . . . . Fabricators . | . . . . . . . . . . . . . . Repair Stations . | . . . . . . . . . . . . . . Recycling Units . | . . . . . . . . . . . . . . Scanalyzers . | . . . . . . . . . . . . . . Garrison Access . | . . . . . . . . . . . . . . Data Cores Recovered 1 | . . . 1 . . . . . . . . . . Used . | . . . . . . . . . . . . . . Hacking Detections 20 | . 7 1 3 2 3 . . 3 1 . . . . Full Trace Events . | . . . . . . . . . . . . . . Feedback Events . | . . . . . . . . . . . . . . Feedback Blocked . | . . . . . . . . . . . . . . Robot Schematics Acquired . | . . . . . . . . . . . . . . Robots Built . | . . . . . . . . . . . . . . Matter . | . . . . . . . . . . . . . . Time . | . . . . . . . . . . . . . . Total Robot Build Rating . | . . . . . . . . . . . . . . Part Schematics Acquired . | . . . . . . . . . . . . . . Parts Built . | . . . . . . . . . . . . . . Matter . | . . . . . . . . . . . . . . Time . | . . . . . . . . . . . . . . Total Part Build Rating . | . . . . . . . . . . . . . . Parts Repaired 7 | . 1 . 3 1 . . . 2 . . . . . Time 257 | . 13 . 130 70 . . . 44 . . . . . Parts Recycled . | . . . . . . . . . . . . . . Recycled Matter . | . . . . . . . . . . . . . . Retrieved Matter . | . . . . . . . . . . . . . . Retrieved Components 9 | . 9 . . . . . . . . . . . . Parts Scanalyzed . | . . . . . . . . . . . . . . Part Schematics Acquired . | . . . . . . . . . . . . . . Parts Damaged . | . . . . . . . . . . . . . . Bothacking | -11 -10 -9 -8 -7 -6 -6 -6 -5 -4 -4 -4 -4 -3 ------------ Run | Scr Mat Mat Mat Fac Fac Ext Cet Fac Fac Upp Upp War Pro Used RIF Installer . | . . . . . . . . . . . . . . Robots Hacked 6 | . . . 4 . . 1 . 1 . . . . . Non-combat 6 | . . . 4 . . 1 . 1 . . . . . Combat . | . . . . . . . . . . . . . . Robot Hacks Applied 8 | . . . 6 . . 1 . 1 . . . . . parse_system 2 | . . . 2 . . . . . . . . . . no_distress 6 | . . . 4 . . 1 . 1 . . . . . Relay Couplers Released . | . . . . . . . . . . . . . . Robots Rewired 2 | . . . . . . . . . . 2 . . . Allies Hacked . | . . . . . . . . . . . . . . Hacks Repelled . | . . . . . . . . . . . . . . Allies | -11 -10 -9 -8 -7 -6 -6 -6 -5 -4 -4 -4 -4 -3 -------- Run | Scr Mat Mat Mat Fac Fac Ext Cet Fac Fac Upp Upp War Pro Total Allies 2 | . . . . . . . . . . 2 . . . Largest Group 2 | . . . . . . . . . . 2 . . . Highest-Rated Group 96 | . . . . . . . . . . 96 . . . Highest-Rated Ally 49 | . . . . . . . . . . 49 . . . Total Orders 5 | . . . . . . . . . . . 2 3 . EXPLORE 3 | . . . . . . . . . . . 2 1 . RETURN 2 | . . . . . . . . . . . . 2 . Ally Attacks 6 | . . . . . . . . . . 6 . . . Total Damage 136 | . . . . . . . . . . 136 . . . Kills 1 | . . . . . . . . . . 1 . . . Allies Corrupted . | . . . . . . . . . . . . . . Allies Melted . | . . . . . . . . . . . . . . Intel | -11 -10 -9 -8 -7 -6 -6 -6 -5 -4 -4 -4 -4 -3 ------- Run | Scr Mat Mat Mat Fac Fac Ext Cet Fac Fac Upp Upp War Pro Robot Analysis Total 1 | . . . . 1 . . . . . . . . . Derelict Logs Recovered 2 | . . . . . . . . . . 1 1 . . Drone Launches 14 | . . . . . . . . . . . 3 11 . Drone Recoveries 13 | . . . . . . . . . . . 2 11 . Exploration | -11 -10 -9 -8 -7 -6 -6 -6 -5 -4 -4 -4 -4 -3 ------------- Run | Scr Mat Mat Mat Fac Fac Ext Cet Fac Fac Upp Upp War Pro Turns Passed 8820 | 1123 745 189 826 425 263 397 25 722 719 688 717 1849 132 Spaces Moved 7301 | 525 517 213 877 450 427 685 54 700 866 394 439 1100 54 Core 16 | 11 . . . . . . . . . 2 . . 3 Treads . | . . . . . . . . . . . . . . Legs 2494 | 514 271 . . . . . . . . 315 439 955 . Wheels . | . . . . . . . . . . . . . . Hover 3987 | . 246 83 203 450 427 685 54 700 866 77 . 145 51 Flight 804 | . . 130 674 . . . . . . . . . . Fastest Speed 28 | 50 52 30 28 44 38 46 46 42 40 105 120 40 104 Average Speed 74 | 118 101 40 41 52 44 48 46 45 47 124 120 111 165 Slowest Speed 1400 | 120 246 175 120 104 50 55 46 46 105 600 120 216 1400 Overloaded Moves . | . . . . . . . . . . . . . . Propulsion Burnouts . | . . . . . . . . . . . . . . Robots Hopped 3 | . . . 3 . . . . . . . . . . Cave-ins Triggered . | . . . . . . . . . . . . . . Exploration Rate (%) 42 | 47 67 21 67 12 10 80 23 12 34 49 61 97 9 Regions Visited 13 Branch Regions 6 Pre-discovered Areas 1 | . . . . . . . . . . 1 . . . Known Exits Taken 13 | 1 1 1 1 1 1 1 1 1 1 1 1 1 . Unknown Exits Taken . | . . . . . . . . . . . . . . Scrap Searched 5 | . . . . . . . . . . 2 3 . . Spaces Dug . | . . . . . . . . . . . . . . Terrain Destroyed 111 | . . . 27 17 . . . 43 . 1 2 20 1 Melee . | . . . . . . . . . . . . . . Projectile 13 | . . . 5 . . . . 3 . 1 2 1 1 AOE 98 | . . . 22 17 . . . 40 . . . 19 . Terrain Rammed . | . . . . . . . . . . . . . . Walls Destroyed . | . . . . . . . . . . . . . . Machines Disabled . | . . . . . . . . . . . . . . Actions | -11 -10 -9 -8 -7 -6 -6 -6 -5 -4 -4 -4 -4 -3 --------- Run | Scr Mat Mat Mat Fac Fac Ext Cet Fac Fac Upp Upp War Pro Total 10185 | 1025 683 269 1221 595 489 728 53 1075 1169 527 598 1677 76 Wait 2011 | 480 87 4 176 82 18 9 . 296 249 32 105 473 . Move 7282 | 524 516 212 870 449 426 684 53 699 865 393 438 1099 54 Hop 3 | . . . 3 . . . . . . . . . . Pick Up 163 | 14 17 7 22 13 14 6 . 10 6 25 1 28 . Fast Attach 26 | . 3 . 2 3 . 1 . 5 2 2 6 2 . Attach 83 | 7 . 2 15 3 4 3 . 2 5 22 . 10 10 Detach 5 | . . . 1 . 2 . . . 1 . . 1 . Swap 108 | . 10 10 16 13 7 5 . 17 5 6 12 7 . Drop 134 | . 17 8 15 10 11 5 . 18 5 2 17 26 . Fire 316 | . 33 26 93 22 7 11 . 27 5 34 19 27 12 Melee 20 | . . . 8 . . 2 . 1 . 9 . . . Ram . | . . . . . . . . . . . . . . Kick . | . . . . . . . . . . . . . . Crush . | . . . . . . . . . . . . . . Escape Stasis 28 | . . . . . . 2 . . 26 . . . . Rewire 6 | . . . . . . . . . . 2 . 4 . Trap . | . . . . . . . . . . . . . . Miscellaneous . | . . . . . . . . . . . . . . Route ------- -11/Scrapyard -10/Materials (discovered 2 exits: *Mat / *Min) -9/Materials (discovered 2 exits: *Mat / *Sto) -8/Materials -7/Factory -6/Factory -6/Extension (discovered 2 exits: *Fac / *Cet) -6/Cetus -5/Factory (discovered 3 exits: *Fac / Upp x2) -4/Factory (discovered 6 exits: Res x4 / *Upp x2) -4/Upper Caves -4/Upper Caves -4/Warlord -3/Proximity Caves History --------- Turn | Location | Event 2 | -11/Scrapyard | Identified exit to Materials 2 | -11/Scrapyard | Discovered exit to Materials (range 16) 1124 | -11/Scrapyard | Entered Materials 1124 | -10/Materials | Evolved 1 slot: Propulsion x1 1125 | -10/Materials | Build established: Hacker-Mutant 1239 | -10/Materials | Identified exit to Mines 1743 | -10/Materials | Repaired Hover Unit 1830 | -10/Materials | Identified exit to Materials 1830 | -10/Materials | Discovered exit to Materials (range 6) 1869 | -10/Materials | Entered another Materials area 1869 | -9/Materials | Evolved 2 slots: Power x1, Utility x1 1997 | -9/Materials | Identified exit to Storage 1997 | -9/Materials | Discovered exit to Storage (range 12) 2002 | -9/Materials | Identified exit to Materials 2002 | -9/Materials | Discovered exit to Materials (range 18) 2058 | -9/Materials | Entered another Materials area 2058 | -8/Materials | Evolved 2 slots: Propulsion x1, Utility x1 2169 | -8/Materials | Build established: Scavenger-Scout 2237 | -8/Materials | Repaired Broken Hvy. Particle Cannon 2480 | -8/Materials | Repaired Flight Unit 2533 | -8/Materials | Repaired Imp. Flight Unit 2559 | -8/Materials | Destroyed 7 combat bots 2567 | -8/Materials | Lost 4 parts (1p2n1u) 2880 | -8/Materials | Identified exit to Factory 2880 | -8/Materials | Discovered exit to Factory (range 5) 2884 | -8/Materials | Entered Factory 2884 | -7/Factory | Evolved 2 slots: Propulsion x1, Utility x1 2912 | -7/Factory | Lost 3 parts (1p1n1w) 3106 | -7/Factory | Build established: Hacker-Scout 3124 | -7/Factory | Repaired Airjet 3245 | -7/Factory | Identified exit to Factory 3245 | -7/Factory | Discovered exit to Factory (range 18) 3309 | -7/Factory | Entered another Factory area 3309 | -6/Factory | Evolved 2 slots: Propulsion x1, Utility x1 3409 | -6/Factory | Build established: Hacker-Mutant 3556 | -6/Factory | Identified exit to Extension 3556 | -6/Factory | Discovered exit to Extension (range 12) 3572 | -6/Factory | Entered Extension 3709 | -6/Extension | Spotted B-75 Beast 3845 | -6/Extension | Spotted B-75 Beast 3898 | -6/Extension | Identified exit to Cetus 3898 | -6/Extension | Discovered exit to Cetus (range 19) 3898 | -6/Extension | Identified exit to Factory 3898 | -6/Extension | Discovered exit to Factory (range 19) 3969 | -6/Extension | Entered Cetus 3975 | -6/Cetus | Spotted Cetus Guard 3975 | -6/Cetus | Spotted Cetus Guard 3975 | -6/Cetus | Spotted Cetus Guard 3975 | -6/Cetus | Spotted Cetus Guard 3985 | -6/Cetus | Build established: Hacker-Scout 3985 | -6/Cetus | Discovered exit to Factory (range 19) 3994 | -6/Cetus | Entered Factory 3994 | -5/Factory | Evolved 2 slots: Utility x2 4174 | -5/Factory | Repaired Imp. Datajack 4201 | -5/Factory | Repaired Gravmag Array 4380 | -5/Factory | Identified exit to Upper Caves 4472 | -5/Factory | Build established: Hacker-Ninja 4688 | -5/Factory | Identified exit to Factory 4688 | -5/Factory | Discovered exit to Factory (range 12) 4716 | -5/Factory | Entered another Factory area 4716 | -4/Factory | Evolved 2 slots: Utility x2 5152 | -4/Factory | Identified exit to Research 5152 | -4/Factory | Identified exit to Upper Caves 5187 | -4/Factory | Spotted B-86 Titan 5435 | -4/Factory | Entered Upper Caves 5457 | -4/Upper Caves | Lost 9 parts (1p4n3u1w) 5461 | -4/Upper Caves | Attracted the attention of an 0b10 outpost 5542 | -4/Upper Caves | Learned location of Quarantine (-3) 5607 | -4/Upper Caves | Core integrity fell below 50% 5641 | -4/Upper Caves | Lost 13 parts (2p2n6u3w) 5978 | -4/Upper Caves | Build established: Scavenger-Mutant 6087 | -4/Upper Caves | Identified exit to Upper Caves 6087 | -4/Upper Caves | Discovered exit to Upper Caves (range 6) 6123 | -4/Upper Caves | Entered another Upper Caves area 6709 | -4/Upper Caves | Identified exit to Warlord 6709 | -4/Upper Caves | Discovered exit to Warlord (range 6) 6725 | -4/Upper Caves | Learned Research emergency access door positions 6840 | -4/Upper Caves | Entered Warlord 6898 | -4/Warlord | System corruption cleaned by Quarantine Array 7533 | -4/Warlord | Identified exit to Proximity Caves 7533 | -4/Warlord | Discovered exit to Proximity Caves (range 78) 7719 | -4/Warlord | Visited the Vortex Lab 7725 | -4/Warlord | Found Prototype Energy Gun 7727 | -4/Warlord | Found Prototype Energy Gun 7728 | -4/Warlord | Identified Vortex Rifle (x2) 7734 | -4/Warlord | Warlord's base attacked by MAIN.C 7892 | -4/Warlord | Opened side exit 8065 | -4/Warlord | Found Prototype Device 8067 | -4/Warlord | Identified Minesniffer Drone Bay 8084 | -4/Warlord | Warlord forces counterattacked 8090 | -4/Warlord | Met Warlord 8306 | -4/Warlord | Spotted Striker 8308 | -4/Warlord | Spotted Executioner 8316 | -4/Warlord | Destroyed Striker 8319 | -4/Warlord | Destroyed Executioner 8344 | -4/Warlord | Found Prototype Processor 8346 | -4/Warlord | Found Prototype Processor 8353 | -4/Warlord | Found Prototype Device 8409 | -4/Warlord | Warlord base infiltrated, sounded retreat 8544 | -4/Warlord | Lost 3 parts (1n1u1w) 8573 | -4/Warlord | Destroyed 7 combat bots 8635 | -4/Warlord | Spotted Executioner 8689 | -4/Warlord | Entered Proximity Caves 8695 | -3/Proximity Caves | Spotted B-86 Titan 8732 | -3/Proximity Caves | Attracted the attention of an 0b10 checkpoint 8737 | -3/Proximity Caves | Identified Exp. Core Analyzer 8768 | -3/Proximity Caves | Core integrity fell below 20% 8804 | -3/Proximity Caves | Identified Adv. Kinecellerator 8805 | -3/Proximity Caves | Identified Exp. Targeting Computer 8821 | -3/Proximity Caves | Destroyed by B-86 Titan with Hardcell Cannon Last Messages --------------- 08780_ Destroyed Xenon Bombardment Thruster. 08780_ S-43 Plague destroyed. 08781_ Gamma Rifle destroyed. 08781_ Penetrated by Slug. 08781_ Slug penetrates Wall. 08785_ Helical Railgun destroyed. 08785_ Slug penetrates Wall. 08795_ Lgt. Particle Reactor destroyed. 08795_ Imp. Core Analyzer destroyed. 08798_ Slug penetrates Wall. 08801_ Penetrated by Slug. 08803_ Identified Exp. Heat Sink. 08804_ Identified Adv. Kinecellerator. 08805_ Penetrated by Slug. 08805_ Identified Exp. Targeting Computer. 08808_ Penetrated by Slug. 08808_ Minesniffer Drone Bay destroyed. 08811_ Penetrated by Slug. 08818_ Adv. Kinecellerator destroyed. 08818_ Slug penetrates Wall. Map ----- +----------------------------------------------------+ | | | | | | | | | | | ???????????????????????????????????????????????? | | ???????????????????????????????????????????????? | | ???????????????????????????????????????????????? | | ???????????????????????????????????????????????? | | ???????????????????????????????????????????????? | | ???????????????????????????????????????????????? | | ???????????????????????????????????????????????? | | ???????????????????????????????????????????????? | | ???????????????????????????????????????????????? | | ???????????????????????????????????????????????? | | ???????????????????????????????????????????????? | | ????????????????????#??????????????????????????? | | ???????????????????? #?????????????????????????? | | ????????????????????? ?????????????????????????? | | ????????????????????? #?????????###??###???????? | | ????????????????????##;##???????# ### ########? | | ????????????????????# #???????# ^ #? | | ????????????????????## ##???????# #? | | ????????????????????#; ;#??####### #?? | | ?????????????????????# ;#??# #### | | ?????????????????????# @ #??# ##### | | ?????????????????????#; ;#?# #??# | | ?????????????????????#; ;## #??# ### | | ????????????????????## ## #??# ## ##?# | | ???????????????????## =% ;#%##?# #### ###??# | | ??????????????????# #?# #??# #????# | | ?????????????????# ## #??# #????# | | ????????????????# ### ## ???# #????# | | ????????????????##???### ! %### ???# #????# | | ???????????????????????# !%!%#?# ???# ????# | | ???????????????????????# *!%! ?# ???# ???? | | ???????????????????????## =%! ## ???###???? | | ????????????????????????###;BB;#? ?????????? | | ???????????????????????????;BB#??? ?????????? | | ??????????????????????????? #????????????? | | ??????????????????????????? ????????????### | | ??????????????????????????? ??????????????# | | ??????????????????????????? ??????????????# | | ??????????????????????????? ??????????????# | | ??????????????????????????? ?????????????### | | ???????????????????????????? ????????????????? | | ???????????????????????????????????????????????? | | ???????????????????????????????????????????????? | | ???????????????????????????????????????????????? | | ???????????????????????????????????????????????? | +----------------------------------------------------+ Best States ------------- Heat Dissipation 88 Energy Generation 43 Energy Capacity 535 Matter Stores 300 Matter Capacity 300 Sight Range 20 Robot Scan Range 16 Terrain Scan Range 20 Terrain Scan Density 10 ECM Strength 3 Jamming Range 8 Cloak Strength 2 Power Amplification 30 Corruption Prevention 12 Resistance: KI 35 Resistance: TH 35 Resistance: EX 35 Resistance: EM 35 Resistance: I 35 Resistance: S 35 Resistance: P 35 Evasion (%) 70 Targeting Accuracy 18 Core Analysis 15 Kinecelleration 50 Offensive Hacking 30 Defensive Hacking 12 Item Schematics ----------------- None Robot Schematics ------------------ None Fabricated ------------ Nothing Alien Tech Used ----------------- None Achievements -------------- A Powerful Ally? Charge!!! Deadly Force GoHome() Librarian Novice Programmer Release The Drones! Slippery One Challenges ------------ None Game ------ Seed NeutrinoCompactFlamer Manual? 0 Play Time 02:47:03 Cumulative 10.9 hours Start 2020.11.18 @ 12:42:27 End 2020.11.18 @ 16:12:48 Sessions 1 Manual Loads 0 Difficulty Explorer Special Mode None Game No. 8 Rogue 4 Adventurer 0 Explorer 4 Win Type - Total 1 Types 1/0/0/0/0/0/0/0/0 Lore% 11 Gallery% 22 Achievement% 23 Wizard Run 0 Options --------- ASCII 0 Keyboard 0 Movement Mouse Keybinds 0 Fullscreen 1 Font 18/SmallcapsGlow Map View 76x50 Tactical HUD 1 Map Filters NONE Filters NONE Steam 1 RUN: e9cb6ad4-9ae9-4aac-8dc2-a48a2dc92a11